bitfinex/quotes_SOLUSD_20240829
["timestamp","ask_amount","ask_price","bid_price","bid_amount"]
[1724945701235,6.7779,147.54,147.45,75.25098]
[1724945701429,6.7773,147.55,147.46,20.0]
[1724945701638,6.776,147.58,147.48,6.6583]
[1724945701823,38.65879727,147.61,147.49,20.12549]
[1724945702016,16.5852,147.62,147.49,50.0]
[1724945702017,38.65879727,147.58,147.49,50.0]
[1724945702216,38.65879727,147.58,147.49,30.0]
[1724945702429,6.7774,147.55,147.48,6.6583]
[1724945702917,38.65879727,147.52,147.48,6.6583]
[1724945703117,38.65879727,147.5,147.39,22.9529]
[1724945703436,38.65879727,147.48,147.41,30.0]
[1724945703745,38.65879727,147.48,147.39,22.9529]
[1724945703947,38.65879727,147.52,147.4,0.79296155]
[1724945704123,6.78,147.5,147.39,22.9529]
[1724945704322,38.65879727,147.52,147.39,22.9529]
[1724945704523,38.65879727,147.5,147.4,20.0]
[1724945704736,6.7806,147.48,147.39,22.9529]
[1724945704918,6.781,147.47,147.39,22.9529]
[1724945705236,38.65879727,147.48,147.39,22.9529]
[1724945705423,38.65879727,147.5,147.39,22.9529]
[1724945705617,38.65879727,147.52,147.39,22.9529]
[1724945705817,45.43789727,147.52,147.4,30.0]
[1724945706020,38.65879727,147.54,147.41,38.65879727]
[1724945706214,38.65879727,147.54,147.42,6.5079]
[1724945706415,38.65879727,147.54,147.43,0.25098]
[1724945706638,38.65879727,147.54,147.43,45.25098]
[1724945706832,45.43669727,147.54,147.44,20.49338979]
[1724945707143,45.43569727,147.56,147.46,16.3529]
[1724945707340,45.43569727,147.56,147.47,20.61877941]
[1724945707638,45.43569727,147.56,147.48,6.4388]
[1724945707841,45.43569727,147.56,147.49,0.49322251]
[1724945708044,38.65879727,147.56,147.48,6.4388]
[1724945708344,6.7764,147.57,147.49,0.12549]
[1724945708547,6.7769,147.56,147.49,75.12549]
[1724945709121,38.65879727,147.58,147.49,75.12549]
[1724945709425,6.777,147.56,147.49,45.12549]
[1724945709943,6.7774,147.55,147.49,45.12549]
[1724945710154,6.7774,147.55,147.48,6.4388]
[1724945710441,6.7778,147.54,147.48,6.4388]
[1724945710843,38.65879727,147.58,147.48,6.4388]
[1724945711053,38.65879727,147.58,147.49,45.0]
[1724945711250,6.7777,147.55,147.48,6.4388]
[1724945712450,38.65879727,147.56,147.48,6.4388]
[1724945712646,38.65879727,147.55,147.4,6.127]
[1724945712823,66.5852,147.62,147.4,6.127]
[1724945712824,45.43799727,147.51,147.42,30.0]
[1724945713142,38.65879727,147.53,147.42,30.0]
[1724945713541,38.65879727,147.53,147.43,15.1909]
[1724945713740,38.65879727,147.53,147.44,6.127]
[1724945714132,45.43619727,147.55,147.45,21.48122776]
[1724945714339,6.777,147.56,147.46,0.12549]
[1724945714538,6.777,147.56,147.46,1.48104298]
[1724945714735,45.43529727,147.57,147.47,0.12549]
[1724945715050,33.8669,147.64,147.49,6.127]
[1724945715051,38.65879727,147.59,147.49,6.127]
[1724945715254,16.9334,147.64,147.5,45.25098]
[1724945715255,6.7754,147.6,147.5,45.25098]
[1724945716041,6.7756,147.59,147.5,45.25098]
[1724945716244,6.7756,147.59,147.5,45.12549]
[1724945716646,6.7765,147.57,147.5,0.12549]
[1724945716936,6.7774,147.55,147.49,6.127]
[1724945717653,6.777,147.56,147.49,6.127]
[1724945717827,38.65879727,147.59,147.49,6.127]
[1724945718026,6.7764,147.57,147.49,6.127]
[1724945718630,6.7769,147.56,147.5,45.12549]
[1724945719945,6.7769,147.56,147.49,6.127]
[1724945719946,38.65879727,147.57,147.49,6.127]
[1724945720148,38.65879727,147.55,147.49,6.127]
[1724945720453,6.7785,147.53,147.49,6.127]
[1724945720838,6.7779,147.54,147.49,6.127]
[1724945721038,6.7784,147.53,147.49,6.127]
[1724945721847,6.7779,147.54,147.49,6.127]
[1724945722648,6.7783,147.53,147.49,6.127]
[1724945722955,6.7783,147.53,147.48,15.1909]
[1724945722956,38.65879727,147.53,147.48,15.1909]
[1724945723156,6.779,147.52,147.48,15.1909]
[1724945723457,45.43719727,147.53,147.48,15.1909]
[1724945723664,15.5999,147.59,147.49,0.46415701]
[1724945723665,6.7778,147.54,147.49,0.46415701]
[1724945723836,38.65879727,147.57,147.49,0.46415701]
[1724945724041,45.43439727,147.59,147.48,15.1909]
[1724945724235,45.43439727,147.59,147.49,20.0]
[1724945724236,38.65879727,147.59,147.49,20.0]
[1724945724560,6.7781,147.54,147.48,15.1909]
[1724945724759,45.43619727,147.55,147.48,15.1909]
[1724945724949,6.7772,147.56,147.48,15.1909]
[1724945725143,6.7775,147.55,147.48,15.1909]
[1724945725344,38.65879727,147.55,147.48,15.1909]
[1724945725544,38.65879727,147.53,147.48,15.1909]
[1724945725850,6.7794,147.51,147.48,15.1909]
[1724945726054,6.7797,147.5,147.46,6.0963]
[1724945726246,6.7804,147.49,147.46,6.0963]
[1724945726451,6.7804,147.49,147.44,15.8911]
[1724945726654,6.781,147.47,147.44,15.8911]
[1724945727456,45.43799727,147.51,147.44,15.8911]
[1724945727962,6.7797,147.5,147.44,15.8911]
[1724945728147,6.7803,147.49,147.44,15.8911]
[1724945728348,45.43909727,147.49,147.44,15.8911]
[1724945728554,45.43899727,147.49,147.44,15.8911]
[1724945728866,38.65879727,147.49,147.44,15.8911]
[1724945729043,45.43899727,147.49,147.44,15.8911]
[1724945729746,6.7798,147.5,147.44,15.8911]
[1724945730167,6.7802,147.49,147.44,15.8911]
[1724945730668,6.7807,147.48,147.44,15.8911]
[1724945730841,6.7802,147.49,147.44,15.8911]
[1724945731038,6.7819,147.45,147.44,15.8911]
[1724945731240,45.43989727,147.47,147.42,6.1337]
[1724945731461,6.7816,147.46,147.42,6.1337]
[1724945731950,6.7819,147.45,147.42,6.1337]
[1724945732350,38.65879727,147.49,147.42,6.1337]
[1724945732555,6.7809,147.48,147.42,6.1337]
[1724945732754,6.7813,147.47,147.42,6.1337]
[1724945733064,6.782,147.45,147.42,6.1337]
[1724945733258,6.7816,147.46,147.42,6.1337]
[1724945733580,45.43979727,147.47,147.42,6.1337]
[1724945733786,38.65879727,147.47,147.39,15.3951]
[1724945733956,38.65879727,147.45,147.39,15.3951]
[1724945734361,6.7824,147.44,147.39,15.3951]
[1724945734680,45.44089727,147.45,147.39,15.3951]
[1724945734974,6.7825,147.44,147.39,15.3951]
[1724945735268,6.7829,147.43,147.39,15.3951]
[1724945735470,6.7825,147.44,147.39,15.3951]
[1724945736180,6.7829,147.43,147.39,15.3951]
[1724945736876,38.65879727,147.43,147.38,6.0066]
[1724945737076,6.7838,147.41,147.38,6.0066]
[1724945737274,6.7849,147.39,147.35,16.6153]
[1724945737582,6.7864,147.36,147.31,16.6153]
[1724945737870,50.0,147.45,147.31,16.6153]
[1724945737871,38.65879727,147.39,147.31,16.6153]
[1724945738676,38.65879727,147.37,147.31,16.6153]
[1724945738968,38.65879727,147.39,147.31,16.6153]
[1724945739469,45.44349727,147.39,147.31,16.6153]
[1724945739779,38.65879727,147.39,147.31,16.6153]
[1724945740269,38.65879727,147.39,147.32,1.35726663]
[1724945740476,38.65879727,147.42,147.31,16.6153]
[1724945740669,38.65879727,147.42,147.32,45.0]
[1724945740869,38.65879727,147.42,147.33,0.12549]
[1724945741179,38.65879727,147.44,147.33,20.12549]
[1724945741672,38.65879727,147.4,147.31,16.6153]
[1724945741882,45.44399727,147.38,147.31,16.6153]
[1724945742085,38.65879727,147.36,147.31,16.6153]
[1724945743357,38.65879727,147.4,147.31,16.6153]
[1724945743574,45.44309727,147.4,147.31,16.6153]
[1724945743882,38.65879727,147.4,147.32,1.35727197]
[1724945744169,38.65879727,147.42,147.31,16.6153]
[1724945744379,38.65879727,147.42,147.32,65.12549]
[1724945745079,38.65879727,147.44,147.33,6.4943]
[1724945745252,38.65879727,147.44,147.34,65.25098]
[1724945745654,38.65879727,147.46,147.34,65.25098]
[1724945745879,38.65879727,147.46,147.35,16.6472]
[1724945746085,45.44059727,147.46,147.36,20.0]
[1724945746382,6.7819,147.45,147.36,20.0]
[1724945746558,6.7819,147.45,147.35,16.6472]
[1724945746754,45.44129727,147.44,147.35,16.6472]
[1724945747685,38.65879727,147.44,147.35,16.6472]
[1724945748255,38.65879727,147.46,147.35,16.6472]
[1724945748586,38.65879727,147.46,147.36,45.12549]
[1724945748772,45.44029727,147.46,147.36,45.12549]
[1724945749076,6.782,147.45,147.35,16.6472]
[1724945749280,45.44129727,147.44,147.35,16.6472]
[1724945749871,38.65879727,147.44,147.35,16.6472]
[1724945750268,38.65879727,147.44,147.36,21.35692295]
[1724945750467,307.80879727,147.49,147.37,0.12549]
[1724945750787,38.65879727,147.49,147.38,6.4851]
[1724945750967,38.65879727,147.49,147.39,20.0]
[1724945751165,6.781,147.48,147.39,20.0]
[1724945751373,38.65879727,147.47,147.39,20.0]
[1724945751573,45.43889727,147.49,147.39,20.0]
[1724945752079,38.65879727,147.49,147.39,20.0]
[1724945752266,6.7811,147.47,147.39,20.0]
[1724945752576,6.7806,147.48,147.39,20.0]
[1724945753360,45.43899727,147.49,147.39,20.0]
[1724945754375,38.65879727,147.47,147.39,20.0]
[1724945754681,45.43989727,147.47,147.39,20.0]
[1724945755293,6.7815,147.46,147.39,20.0]
[1724945755464,6.7825,147.44,147.38,6.4851]
[1724945755786,38.65879727,147.45,147.38,6.4851]
[1724945756482,6.7811,147.47,147.38,6.4851]
[1724945756483,45.43989727,147.47,147.38,6.4851]
[1724945757098,38.65879727,147.45,147.38,6.4851]
[1724945757383,6.7827,147.44,147.38,6.4851]
[1724945757593,38.65879727,147.45,147.38,6.4851]
[1724945757975,45.44009727,147.47,147.38,6.4851]
[1724945758174,6.7815,147.46,147.38,6.4851]
[1724945759191,45.43989727,147.47,147.38,6.4851]
[1724945759681,45.43989727,147.47,147.39,45.0]
[1724945759879,38.65879727,147.49,147.39,45.0]
[1724945760274,38.65879727,147.49,147.38,6.4851]
[1724945760589,38.65879727,147.47,147.38,6.4851]
[1724945761091,45.44179727,147.43,147.38,6.4851]
[1724945761399,38.65879727,147.43,147.38,6.4851]
[1724945761584,6.7834,147.42,147.38,6.4851]
[1724945761789,16.9519,147.48,147.35,16.6472]
[1724945761790,45.44269727,147.41,147.35,16.6472]
[1724945761980,38.65879727,147.41,147.35,16.6472]
[1724945762307,6.7842,147.4,147.35,16.6472]
[1724945762798,6.7836,147.42,147.36,1.35721625]
[1724945763497,45.44169727,147.43,147.36,1.35721625]
[1724945763994,38.65879727,147.43,147.36,1.35721625]
[1724945764579,45.44169727,147.43,147.35,16.6472]
[1724945765284,6.7825,147.44,147.36,1.35690513]
[1724945765594,6.7834,147.42,147.35,16.6472]
[1724945765789,6.7838,147.41,147.35,16.6472]
[1724945766000,38.65879727,147.41,147.34,6.6319]
[1724945766176,38.65879727,147.39,147.32,16.51]
[1724945766376,45.44449727,147.37,147.32,16.51]
[1724945767582,45.44449727,147.37,147.31,73.95849507]
[1724945767781,38.65879727,147.37,147.31,73.95849507]
[1724945767985,45.44459727,147.37,147.31,73.95849507]
[1724945768296,38.65879727,147.35,147.31,73.95849507]
[1724945769091,6.7874,147.33,147.31,73.95849507]
[1724945769404,45.44619727,147.33,147.31,73.95849507]
[1724945771589,38.65879727,147.33,147.31,73.95849507]
[1724945771802,45.44629727,147.33,147.31,73.95849507]
[1724945772005,38.65879727,147.33,147.31,73.95849507]
[1724945772303,6.7879,147.32,147.31,73.95849507]
[1724945772512,38.65879727,147.33,147.31,73.95849507]
[1724945772705,45.44629727,147.33,147.31,73.95849507]
[1724945773789,6.7879,147.32,147.31,73.95849507]
[1724945774796,6.91339,147.32,147.31,73.95849507]
[1724945774998,6.7892,147.3,147.24,15.1132]
[1724945775197,45.44799727,147.3,147.24,15.1132]
[1724945775514,45.44699727,147.32,147.24,15.1132]
[1724945775843,6.7884,147.31,147.24,15.1132]
[1724945776313,38.65879727,147.3,147.24,15.1132]
[1724945776498,45.44779727,147.3,147.24,15.1132]
[1724945777299,6.7893,147.29,147.24,15.1132]
[1724945777615,38.65879727,147.3,147.24,15.1132]
[1724945777815,45.44799727,147.3,147.24,15.1132]
[1724945778315,38.65879727,147.35,147.25,0.12549]
[1724945778519,38.65879727,147.35,147.24,15.1132]
[1724945778698,6.7878,147.33,147.24,15.1132]
[1724945778895,6.7879,147.32,147.24,15.1132]
[1724945779112,6.7884,147.31,147.24,15.1132]
[1724945779822,45.44679727,147.32,147.24,15.1132]
[1724945780299,38.65879727,147.32,147.24,15.1132]
[1724945780496,45.44609727,147.34,147.24,15.1132]
[1724945780699,38.65879727,147.36,147.25,45.0]
[1724945781098,6.7869,147.35,147.25,45.0]
[1724945781292,38.65879727,147.36,147.26,0.25098]
[1724945781604,6.7865,147.35,147.27,6.1458]
[1724945781813,38.65879727,147.36,147.27,6.1458]
[1724945782297,45.44399727,147.38,147.28,16.1727]
[1724945782811,6.7857,147.37,147.28,16.1727]
[1724945783017,45.44489727,147.36,147.28,16.1727]
[1724945783339,38.65879727,147.34,147.28,16.1727]
[1724945783622,38.65879727,147.32,147.28,16.1727]
[1724945783827,38.65879727,147.34,147.28,16.1727]
[1724945784314,45.44519727,147.36,147.28,16.1727]
[1724945784693,45.44519727,147.36,147.28,17.53044251]
[1724945784890,45.44429727,147.38,147.28,16.1727]
[1724945785900,6.7856,147.37,147.28,16.1727]
[1724945786101,31.03488829,147.36,147.28,16.1727]
[1724945786824,15.8676,147.42,147.29,45.0]
[1724945787117,284.23488829,147.43,147.31,6.1604]
[1724945787321,284.23488829,147.43,147.32,60.37798]
[1724945787525,284.23488829,147.43,147.32,91.41286829]
[1724945787701,284.23488829,147.43,147.33,20.0]
[1724945787901,291.01788829,147.43,147.34,45.12549]
[1724945788111,291.01788829,147.43,147.33,20.0]
[1724945788112,6.7835,147.42,147.33,20.0]
[1724945788326,45.53997691,147.42,147.33,20.0]
[1724945788899,6.7838,147.41,147.33,20.0]
[1724945789112,6.7844,147.4,147.32,15.127]
[1724945789326,6.7851,147.39,147.32,15.127]
[1724945789921,45.54057691,147.4,147.32,15.127]
[1724945790125,6.7848,147.39,147.32,15.127]
[1724945790715,6.7852,147.38,147.32,15.127]
[1724945790932,45.54147691,147.38,147.32,15.127]
[1724945791313,38.75627691,147.38,147.32,15.127]
[1724945792321,6.7838,147.41,147.32,15.127]
[1724945792701,6.7838,147.41,147.33,1.02481789]
[1724945793822,6.7838,147.41,147.32,15.127]
[1724945794595,38.75627691,147.42,147.32,15.127]
[1724945794912,253.2,147.43,147.32,15.127]
[1724945794913,38.75627691,147.4,147.32,15.127]
[1724945796111,6.7847,147.39,147.32,16.48062143]
[1724945796320,6.7847,147.39,147.32,15.127]
[1724945797310,38.75627691,147.4,147.32,15.127]
[1724945797701,6.7853,147.38,147.32,15.127]
[1724945798627,6.7848,147.39,147.32,15.127]
[1724945799524,45.54057691,147.4,147.32,16.48446959]
[1724945799706,45.54057691,147.4,147.32,15.127]
[1724945800422,16.9591,147.42,147.32,15.127]
[1724945800423,6.7839,147.41,147.33,1.35722719]
[1724945801232,6.7839,147.41,147.33,45.0]
[1724945801402,6.7842,147.4,147.33,45.0]
[1724945802618,6.7842,147.4,147.32,15.127]
[1724945803123,6.7839,147.41,147.33,1.35722763]
[1724945803325,6.7839,147.41,147.33,46.35722763]
[1724945803530,6.7847,147.39,147.33,1.35722763]
[1724945803829,6.7845,147.4,147.32,15.127]
[1724945804126,6.7847,147.39,147.32,15.127]
[1724945804629,38.75627691,147.45,147.32,15.127]
[1724945804824,45.53857691,147.45,147.34,6.535]
[1724945805010,45.53857691,147.45,147.35,45.25098]
[1724945805209,6.7824,147.44,147.35,45.12549]
[1724945805433,6.783,147.43,147.35,45.0]
[1724945805630,6.783,147.43,147.34,6.535]
[1724945805931,6.7834,147.42,147.34,6.535]
[1724945806906,38.75627691,147.41,147.34,6.535]
[1724945807331,33.9074,147.47,147.34,6.535]
[1724945807332,38.75627691,147.39,147.34,6.535]
[1724945807631,6.7852,147.38,147.34,6.535]
[1724945808435,31.02165872,147.41,147.34,6.535]
[1724945809629,6.7843,147.4,147.34,6.535]
[1724945809820,37.80545872,147.41,147.34,6.535]
[1724945810037,6.7834,147.42,147.34,6.535]
[1724945810532,16.9555,147.45,147.34,6.535]
[1724945810533,31.02165872,147.45,147.34,6.535]
[1724945810742,31.02165872,147.45,147.35,45.12549]
[1724945810921,6.7827,147.44,147.35,45.12549]
[1724945811122,6.7828,147.43,147.35,45.12549]
[1724945812843,6.7828,147.43,147.36,1.35689972]
[1724945813939,6.01161722,147.43,147.36,1.35689972]
[1724945814942,6.7825,147.44,147.37,16.6239]
[1724945815242,6.7825,147.44,147.38,45.0]
[1724945815646,69.25095872,147.49,147.39,1.35670046]
[1724945815647,31.02165872,147.49,147.39,1.35670046]
[1724945815938,31.02165872,147.49,147.4,6.12709]
[1724945815939,6.7801,147.49,147.4,6.12709]
[1724945816129,6.7801,147.49,147.41,46.35640802]
[1724945816838,15.2554,147.54,147.42,16.36521057]
[1724945817029,31.02165872,147.53,147.43,45.25098]
[1724945817356,31.02165872,147.53,147.44,1.35611479]
[1724945817357,37.80005872,147.53,147.44,1.35611479]
[1724945817643,31.02165872,147.58,147.46,15.0088]
[1724945817845,31.02165872,147.58,147.47,45.25098]
[1724945817846,6.7772,147.56,147.47,45.25098]
[1724945818224,6.7774,147.55,147.47,45.25098]
[1724945819326,6.7782,147.54,147.46,15.0088]
[1724945819652,6.7782,147.54,147.47,45.0]
[1724945819829,31.02165872,147.56,147.47,45.0]
[1724945820020,38.68518905,147.57,147.48,0.12549]
[1724945820222,6.7785,147.53,147.47,45.0]
[1724945820420,38.68518905,147.57,147.47,45.0]
[1724945820421,6.7778,147.54,147.47,45.0]
[1724945820823,6.7773,147.56,147.48,0.25098]
[1724945821317,6.7764,147.57,147.48,0.25098]
[1724945821745,6.777,147.56,147.48,0.25098]
[1724945822230,6.777,147.56,147.47,45.0]
[1724945822231,6.7774,147.55,147.47,45.0]
[1724945822430,6.7779,147.54,147.47,45.0]
[1724945822748,6.7783,147.53,147.46,15.0088]
[1724945823130,38.68518905,147.53,147.46,15.0088]
[1724945823351,6.7791,147.52,147.46,15.0088]
[1724945823854,38.68518905,147.53,147.46,15.0088]
[1724945824028,6.7802,147.49,147.46,15.0088]
[1724945824221,6.7797,147.5,147.46,15.0088]
[1724945826455,6.7806,147.48,147.45,6.2015]
[1724945826626,6.7813,147.47,147.42,16.1667]
[1724945826953,38.68518905,147.47,147.42,16.1667]
[1724945827138,38.68518905,147.47,147.41,6.1198]
[1724945827336,38.68518905,147.45,147.39,30.0]
[1724945827551,38.68518905,147.45,147.38,15.3147]
[1724945827552,6.7829,147.43,147.38,15.3147]
[1724945828426,6.7836,147.42,147.38,15.3147]
[1724945828643,6.7836,147.42,147.37,6.4247]
[1724945828841,6.7834,147.42,147.37,6.4247]
[1724945831036,6.7838,147.41,147.37,6.4247]
[1724945832148,6.7834,147.42,147.37,6.4247]
[1724945832841,6.7838,147.41,147.37,6.4247]
[1724945833770,6.7842,147.4,147.37,6.4247]
[1724945834145,6.7838,147.41,147.37,6.4247]
[1724945834570,6.7838,147.41,147.35,1.35610403]
[1724945834746,6.7842,147.4,147.34,16.3626]
[1724945835464,6.7844,147.4,147.34,16.3626]
[1724945835658,6.1421,147.46,147.34,16.3626]
[1724945835659,38.68518905,147.39,147.34,16.3626]
[1724945835897,6.7852,147.38,147.34,16.3626]
[1724945836247,38.68518905,147.39,147.34,16.3626]
[1724945836437,6.7856,147.37,147.33,6.191]
[1724945836836,6.7853,147.38,147.33,6.191]
[1724945837050,6.7857,147.37,147.33,6.191]
[1724945837250,16.9588,147.42,147.3,15.1588]
[1724945837251,6.7865,147.35,147.3,15.1588]
[1724945838149,55.65058905,147.36,147.3,15.1588]
[1724945838365,6.7866,147.35,147.29,6.3437]
[1724945839368,38.68518905,147.36,147.29,6.3437]
[1724945839369,6.7879,147.32,147.29,6.3437]
[1724945840365,6.7875,147.33,147.29,6.3437]
[1724945840550,31.04483033,147.34,147.26,16.3575]
[1724945840551,6.788,147.32,147.26,16.3575]
[1724945842146,6.7875,147.33,147.26,16.3575]
[1724945842553,31.04483033,147.34,147.26,16.3575]
[1724945842554,6.7884,147.31,147.26,16.3575]
[1724945842754,37.83283033,147.32,147.25,7.72378083]
[1724945842966,37.83283033,147.32,147.25,6.3657]
[1724945843160,6.7884,147.31,147.25,6.3657]
[1724945843867,6.7879,147.32,147.25,6.3657]
[1724945844670,31.04483033,147.34,147.25,6.3657]
[1724945844869,16.0333,147.38,147.25,6.3657]
[1724945844870,16.0333,147.38,147.26,66.60896705]
[1724945845077,37.82993033,147.39,147.28,47.56793033]
[1724945845255,37.82993033,147.39,147.29,46.48291467]
[1724945845460,6.7852,147.38,147.3,1.35742951]
[1724945846569,6.7852,147.38,147.29,76.17032033]
[1724945846867,31.04483033,147.45,147.33,31.04483033]
[1724945847067,31.04483033,147.45,147.34,45.12549]
[1724945847271,6.4964,147.47,147.36,16.6206]
[1724945847272,37.54123033,147.47,147.36,16.6206]
[1724945847482,31.04483033,147.47,147.37,51.6295]
[1724945847660,37.82493033,147.49,147.38,0.25098]
[1724945848059,38.72916437,147.49,147.38,0.25098]
[1724945849254,6.781,147.47,147.38,0.25098]
[1724945849485,6.7816,147.46,147.38,0.12549]
[1724945849659,6.7816,147.46,147.37,51.6295]
[1724945849977,38.72916437,147.51,147.38,1.60759728]
[1724945850272,6.7797,147.5,147.38,21.60735563]
[1724945850475,6.7792,147.51,147.39,85.08553805]
[1724945850658,6.7786,147.53,147.41,38.72916437]
[1724945850987,6.7792,147.51,147.42,45.25098]
[1724945851156,6.7792,147.51,147.42,0.12549]
[1724945851349,6.7792,147.51,147.43,45.0]
[1724945852079,6.78,147.5,147.43,45.0]
[1724945853878,6.7801,147.49,147.43,45.0]
[1724945855384,6.7806,147.48,147.4,20.0]
[1724945855582,6.7806,147.48,147.38,20.0]
[1724945856264,38.72916437,147.47,147.38,20.0]
[1724945856587,6.7824,147.44,147.37,6.6295]
[1724945856887,6.782,147.45,147.37,6.6295]
[1724945857081,38.72916437,147.45,147.37,6.6295]
[1724945857262,6.7829,147.43,147.37,6.6295]
[1724945858467,6.7833,147.42,147.37,6.6295]
[1724945858673,38.72916437,147.45,147.37,6.6295]
[1724945858982,6.7838,147.41,147.37,6.6295]
[1724945859172,6.7833,147.42,147.37,6.6295]
[1724945859378,38.72916437,147.45,147.37,6.6295]
[1724945859983,6.7832,147.43,147.37,6.6295]
[1724945860476,6.7833,147.42,147.37,6.6295]
[1724945861279,6.7838,147.41,147.37,6.6295]
[1724945861980,6.7838,147.41,147.33,6.248]
[1724945861981,38.72916437,147.41,147.33,6.248]
[1724945862159,16.9573,147.43,147.33,6.248]
[1724945862160,38.72916437,147.39,147.33,6.248]
[1724945862890,6.7856,147.37,147.33,6.248]
[1724945863777,6.7852,147.38,147.33,6.248]
[1724945863987,6.7852,147.38,147.29,22.1039]
[1724945864302,6.7852,147.38,147.3,20.0]
[1724945864583,38.72916437,147.39,147.3,20.0]
[1724945864788,6.7847,147.39,147.3,20.0]
[1724945865088,6.7843,147.4,147.3,20.0]
[1724945865385,6.7843,147.4,147.31,0.25098]
[1724945865585,6.7851,147.38,147.31,45.0]
[1724945865914,38.72916437,147.41,147.32,0.12549]
[1724945866384,6.7843,147.4,147.32,0.12549]
[1724945866994,6.7838,147.41,147.32,1.48270678]
[1724945867171,6.7834,147.42,147.32,21.48270678]
[1724945867492,6.7834,147.42,147.33,45.0]
[1724945867791,6.7838,147.41,147.34,1.35710473]
[1724945867987,6.7838,147.41,147.33,45.0]
[1724945868191,38.72916437,147.43,147.34,0.12549]
[1724945868597,6.7818,147.46,147.35,22.883]
[1724945868769,6.7825,147.44,147.36,46.35681916]
[1724945868974,6.7818,147.46,147.36,46.35681916]
[1724945869188,291.92916437,147.47,147.36,45.0]
[1724945869396,6.7818,147.46,147.37,0.25098]
[1724945869573,6.782,147.45,147.36,45.0]
[1724945869784,6.7833,147.42,147.36,45.0]
[1724945869985,6.7825,147.44,147.36,45.0]
[1724945870275,291.92916437,147.47,147.37,1.35693998]
[1724945870574,291.92916437,147.47,147.36,45.0]
[1724945871185,6.7828,147.44,147.36,45.0]
[1724945871899,6.782,147.45,147.36,45.0]
[1724945872074,6.7824,147.44,147.36,45.0]
[1724945872980,6.782,147.45,147.36,45.0]
[1724945873182,291.92916437,147.47,147.37,0.25098]
[1724945873383,6.7822,147.45,147.36,45.0]
[1724945873808,6.7827,147.44,147.36,45.0]
[1724945874178,6.7827,147.44,147.36,1.35690312]
[1724945874497,6.7827,147.44,147.36,20.0]
[1724945874881,6.7828,147.43,147.36,20.0]
[1724945875203,6.7828,147.43,147.35,22.883]
[1724945875506,6.7824,147.44,147.36,45.0]
[1724945876376,6.7818,147.46,147.37,0.12549]
[1724945876576,253.2,147.47,147.36,45.0]
[1724945876800,291.92916437,147.47,147.36,45.0]
[1724945877577,38.72916437,147.47,147.36,45.0]
[1724945878407,6.7827,147.44,147.36,45.0]
[1724945879580,6.7832,147.43,147.36,45.0]
[1724945880398,38.72916437,147.45,147.36,45.0]
[1724945880801,38.72916437,147.45,147.35,23.00849]
[1724945880802,38.72916437,147.45,147.35,22.883]
[1724945881182,6.7839,147.41,147.35,22.883]
[1724945882101,6.7845,147.4,147.35,22.883]
[1724945882982,6.7847,147.39,147.35,22.883]
[1724945883903,38.72916437,147.43,147.35,22.883]
[1724945884301,6.7833,147.42,147.36,45.0]
[1724945884517,6.7833,147.42,147.35,22.883]
[1724945884805,6.7838,147.41,147.35,22.883]
[1724945884992,38.72916437,147.43,147.35,22.883]
[1724945885177,38.72916437,147.45,147.35,22.883]
[1724945885380,6.7836,147.42,147.35,22.883]
[1724945886315,6.7839,147.41,147.35,22.883]
[1724945886608,6.7834,147.42,147.35,22.883]
[1724945887304,31.00546846,147.43,147.35,22.883]
[1724945887497,6.7844,147.4,147.35,22.883]
[1724945888204,6.7837,147.42,147.35,22.883]
[1724945888455,6.7839,147.41,147.35,22.883]
[1724945888623,6.7834,147.42,147.35,22.883]